[Event "EYCC Girls-U16 2019"]
[Site "Bratislava"]
[Date "2019.08.03"]
[Round "2.9"]
[White "Kuhar, Larisa"]
[Black "Filippova, Margarita"]
[Result "1-0"]
[ECO "C42"]
[WhiteElo "1894"]
[BlackElo "2029"]
[Annotator "NA"]
[PlyCount "113"]
[EventDate "2019.08.02"]
[EventType "swiss"]
[EventCountry "SVK"]
[SourceTitle "playchess.com"]
[Source "ChessBase"]
[SourceQuality "1"]
[TimeControl "40/5400+30:1800+30"]

1. e4 {[%emt 0:00:00]} e5 {[%emt 0:00:00]} 2. Nf3 {[%emt 0:00:00]} Nf6 {[%emt 0:00:00]} 3. Nxe5 {[%emt 0:00:36]} d6 {[%emt 0:00:00]} 4. Nf3 {[%emt 0:00:08]} Nxe4 {[%emt 0:00:01]} 5. d4 {[%emt 0:02:35]} d5 {[%emt 0:00:26]} 6. Bd3 {[%emt 0:00:55]} Bd6 {[%emt 0:00:14]} 7. O-O {[%emt 0:00:55]} O-O {[%emt 0:00:08]} 8. c4 {[%emt 0:02:46]} c6 {[%emt 0:01:54]} 9. Nc3 {[%emt 0:07:38]} Nxc3 {[%emt 0:04:33]} 10. bxc3 {[%emt 0:00:14]} h6 {[%emt 0:00:29]} 11. Re1 {[%emt 0:09:49]} Nd7 {[%emt 0:05:19]} 12. cxd5 {[%emt 0:08:28]} cxd5 {[%emt 0:01:40]} 13. Bc2 {[%emt 0:03:05]} Nf6 {[%emt 0:02:43]} 14. Ne5 {[%emt 0:00:47]} Qc7 {[%emt 0:02:03]} 15. Qf3 {[%emt 0:07:19]} Qd8 {[%emt 0:25:01]} 16. Bf4 {[%emt 0:06:52]} Re8 {[%emt 0:03:39]} 17. Qd3 {[%emt 0:10:32]} Be6 {[%emt 0:05:20]} 18. Re3 {[%emt 0:06:32]} Ne4 {[%emt 0:01:48]} 19. c4 {[%emt 0:03:51]} f6 {[%emt 0:06:06]} 20. cxd5 {[%emt 0:07:04]} Bf5 {[%emt 0:02:38]} 21. Qe2 {[%emt 0:05:39]} fxe5 {[%emt 0:03:20]} 22. dxe5 {[%emt 0:00:32]} g5 {[%emt 0:05:07]} 23. Bxe4 {[%emt 0:08:56]} gxf4 {[%emt 0:00:45]} 24. Bxf5 {[%emt 0:00:15]} fxe3 {[%emt 0:01:33]} 25. exd6 {[%emt 0:01:22]} Qf6 {[%emt 0:02:18]} 26. Qg4+ {[%emt 0:00:59]} Kh8 {[%emt 0:01:04]} 27. Rb1 {[%emt 0:01:53]} e2 {[%emt 0:01:05]} 28. Be6 {[%emt 0:00:16]} Rad8 {[%emt 0:08:44]} 29. Qxe2 {[%emt 0:01:08]} Rxd6 {[%emt 0:00:08]} 30. Qc2 {[%emt 0:01:41]} Rdxe6 {[%emt 0:06:28]} 31. dxe6 {[%emt 0:00:10]} Qxe6 {[%emt 0:00:12]} 32. Qc3+ {[%emt 0:01:00]} Kg8 {[%emt 0:00:17]} 33. Qb3 {[%emt 0:00:41]} Qxb3 {[%emt 0:00:15]} 34. axb3 {[%emt 0:00:02]} Rc8 {[%emt 0:00:33]} 35. g3 {[%emt 0:00:46]} Rc3 {[%emt 0:00:10]} 36. Rb2 {[%emt 0:00:25]} Kf7 {[%emt 0:00:16]} 37. b4 {[%emt 0:00:58]} Ke6 {[%emt 0:00:29]} 38. b5 {[%emt 0:01:09]} Kd6 {[%emt 0:01:13]} 39. Ra2 {[%emt 0:00:55]} Rb3 {[%emt 0:00:18]} 40. Rxa7 {[%emt 0:00:13]} Rxb5 {[%emt 0:00:06]} 41. Kg2 {[%emt 0:30:39]} Ke5 {[%emt 0:30:17]} 42. f4+ {[%emt 0:00:00]} Kf5 {[%emt 0:00:00]} 43. Kh3 {[%emt 0:00:00]} Kg6 {[%emt 0:00:00]} 44. Ra2 {[%emt 0:00:00]} Rh5+ {[%emt 0:00:00]} 45. Kg4 {[%emt 0:00:00]} Rb5 {[%emt 0:00:00]} 46. Rd2 {[%emt 0:00:00]} Rb4 {[%emt 0:00:00]} 47. Rd6+ {[%emt 0:00:00]} Kg7 {[%emt 0:00:00]} 48. Kh4 {[%emt 0:00:00]} Rb2 {[%emt 0:00:00]} 49. h3 {[%emt 0:00:00]} Rb4 {[%emt 0:00:00]} 50. Re6 {[%emt 0:00:00]} Rb3 {[%emt 0:00:00]} 51. g4 {[%emt 0:00:00]} Rb4 {[%emt 0:00:00]} 52. f5 {[%emt 0:00:00]} Rb3 {[%emt 0:00:00]} 53. Rd6 {[%emt 0:00:00]} b5 {[%emt 0:00:00]} 54. Rd7+ {[%emt 0:00:00]} Kg8 {[%emt 0:00:00]} 55. Kh5 {[%emt 0:00:00]} Rxh3+ {[%emt 0:00:00]} 56. Kg6 {[%emt 0:00:00]} Kf8 {[%emt 0:00:00]} 57. f6 {[%emt 0:00:00]} 1-0

[Event "EYCC Girls-U16 2019"]
[Site "Bratislava"]
[Date "2019.08.03"]
[Round "2.10"]
[White "Radikovic, Anamarija"]
[Black "Bardorz, Jana"]
[Result "1/2-1/2"]
[ECO "B08"]
[WhiteElo "2021"]
[BlackElo "1883"]
[Annotator "NA"]
[PlyCount "107"]
[EventDate "2019.08.02"]
[EventType "swiss"]
[EventCountry "SVK"]
[SourceTitle "playchess.com"]
[Source "ChessBase"]
[SourceQuality "1"]
[TimeControl "40/5400+30:1800+30"]

1. d4 {[%emt 0:00:00]} Nf6 {[%emt 0:00:00]} 2. Nf3 {[%emt 0:00:00]} g6 {[%emt 0:00:00]} 3. Nc3 {[%emt 0:00:00]} Bg7 {[%emt 0:00:00]} 4. e4 {[%emt 0:00:00]} d6 {[%emt 0:00:56]} 5. h3 {[%emt 0:00:19]} O-O {[%emt 0:02:06]} 6. Be3 {[%emt 0:01:04]} e5 {[%emt 0:05:18]} 7. Bc4 {[%emt 0:05:46]} exd4 {[%emt 0:09:13]} 8. Nxd4 {[%emt 0:00:26]} Re8 {[%emt 0:03:54]} 9. Qf3 {[%emt 0:22:22]} Nbd7 {[%emt 0:05:11]} 10. Bb3 {[%emt 0:12:25]} Nc5 {[%emt 0:07:00]} 11. O-O-O {[%emt 0:05:16]} Ncxe4 {[%emt 0:09:29]} 12. Nxe4 {[%emt 0:00:07]} Rxe4 {[%emt 0:00:10]} 13. g4 {[%emt 0:00:13]} d5 {[%emt 0:09:41]} 14. g5 {[%emt 0:02:09]} Nh5 {[%emt 0:06:37]} 15. Nc6 {[%emt 0:09:01]} Rxe3 {[%emt 0:07:06]} 16. Qxf7+ {[%emt 0:02:36]} Kxf7 {[%emt 0:00:38]} 17. Nxd8+ {[%emt 0:00:05]} Ke7 {[%emt 0:02:56]} 18. fxe3 {[%emt 0:00:07]} Kxd8 {[%emt 0:01:48]} 19. Bxd5 {[%emt 0:00:06]} Ke7 {[%emt 0:01:05]} 20. Rhf1 {[%emt 0:04:01]} Be6 {[%emt 0:01:51]} 21. Bb3 {[%emt 0:06:01]} Ng3 {[%emt 0:02:20]} 22. Rf3 {[%emt 0:01:41]} Ne4 {[%emt 0:04:33]} 23. h4 {[%emt 0:01:04]} Bxb3 {[%emt 0:06:29]} 24. axb3 {[%emt 0:00:12]} Rf8 {[%emt 0:01:43]} 25. Rxf8 {[%emt 0:03:54]} Bxf8 {[%emt 0:00:08]} 26. Rd4 {[%emt 0:00:08]} Nd6 {[%emt 0:02:50]} 27. Ra4 {[%emt 0:01:42]} a6 {[%emt 0:01:09]} 28. Kd2 {[%emt 0:02:13]} Bg7 {[%emt 0:01:29]} 29. c3 {[%emt 0:01:21]} Nf5 {[%emt 0:01:48]} 30. Re4+ {[%emt 0:01:34]} Kd6 {[%emt 0:01:46]} 31. Rg4 {[%emt 0:00:06]} Be5 {[%emt 0:01:50]} 32. e4 {[%emt 0:00:32]} Ng7 {[%emt 0:00:59]} 33. Ke3 {[%emt 0:01:00]} Nh5 {[%emt 0:00:52]} 34. Kf3 {[%emt 0:01:09]} Kc5 {[%emt 0:01:32]} 35. Rg1 {[%emt 0:00:33]} Kd6 {[%emt 0:00:59]} 36. Rd1+ {[%emt 0:00:25]} Ke7 {[%emt 0:00:45]} 37. Rd5 {[%emt 0:01:48]} Ke6 {[%emt 0:00:36]} 38. Rd8 {[%emt 0:00:20]} a5 {[%emt 0:00:41]} 39. Rd5 {[%emt 0:03:21]} b6 {[%emt 0:00:19]} 40. Rb5 {[%emt 0:00:00]} Bd6 {[%emt 0:00:00]} 41. Rd5 {[%emt 0:04:30]} Ng7 {[%emt 0:07:56]} 42. Rd1 {[%emt 0:00:54]} Ke5 {[%emt 0:03:38]} 43. Ke3 {[%emt 0:01:56]} Ke6 {[%emt 0:03:14]} 44. Rf1 {[%emt 0:00:34]} Be5 {[%emt 0:00:44]} 45. Kd3 {[%emt 0:01:51]} Ne8 {[%emt 0:01:30]} 46. Rh1 {[%emt 0:01:08]} Bf4 {[%emt 0:03:27]} 47. Ke2 {[%emt 0:01:45]} Ng7 {[%emt 0:02:23]} 48. Kf3 {[%emt 0:09:47]} Bd6 {[%emt 0:01:16]} 49. Rd1 {[%emt 0:00:56]} Ke5 {[%emt 0:01:02]} 50. Rd5+ {[%emt 0:00:05]} Ke6 {[%emt 0:00:04]} 51. Kg4 {[%emt 0:01:18]} Nh5 {[%emt 0:01:14]} 52. c4 {[%emt 0:01:15]} c6 {[%emt 0:02:21]} 53. Rd1 {[%emt 0:00:10]} Be5 {[%emt 0:02:13]} 54. Rd2 {[%emt 0:02:23]} 1/2-1/2

[Event "EYCC Girls-U16 2019"]
[Site "Bratislava"]
[Date "2019.08.03"]
[Round "2.11"]
[White "Muedder, Melanie"]
[Black "Afanasieva, Alexandra"]
[Result "1/2-1/2"]
[ECO "B18"]
[WhiteElo "1905"]
[BlackElo "2085"]
[Annotator "NA"]
[PlyCount "61"]
[EventDate "2019.08.02"]
[EventType "swiss"]
[EventCountry "SVK"]
[SourceTitle "playchess.com"]
[Source "ChessBase"]
[SourceQuality "1"]
[TimeControl "40/5400+30:1800+30"]

1. e4 {[%emt 0:00:00]} c6 {[%emt 0:00:00]} 2. d4 {[%emt 0:00:09]} d5 {[%emt 0:00:00]} 3. Nc3 {[%emt 0:00:10]} dxe4 {[%emt 0:00:00]} 4. Nxe4 {[%emt 0:00:09]} Bf5 {[%emt 0:00:00]} 5. Qf3 {[%emt 0:00:10]} e6 {[%emt 0:02:00]} 6. c3 {[%emt 0:01:57]} Nf6 {[%emt 0:04:38]} 7. Nxf6+ {[%emt 0:05:21]} Qxf6 {[%emt 0:00:21]} 8. h4 {[%emt 0:07:34]} h5 {[%emt 0:10:12]} 9. Bg5 {[%emt 0:09:52]} Qg6 {[%emt 0:00:22]} 10. Qg3 {[%emt 0:05:10]} Nd7 {[%emt 0:06:41]} 11. Qc7 {[%emt 0:11:30]} f6 {[%emt 0:20:42]} 12. Be3 {[%emt 0:04:28]} Bd3 {[%emt 0:17:05]} 13. Bxd3 {[%emt 0:18:38]} Qxd3 {[%emt 0:02:00]} 14. Nh3 {[%emt 0:03:38]} e5 {[%emt 0:20:55]} 15. Rd1 {[%emt 0:07:30]} Qb5 {[%emt 0:01:42]} 16. a4 {[%emt 0:05:35]} Qb6 {[%emt 0:06:32]} 17. Qxb6 {[%emt 0:00:37]} axb6 {[%emt 0:00:37]} 18. dxe5 {[%emt 0:02:24]} Nxe5 {[%emt 0:00:12]} 19. b3 {[%emt 0:01:34]} Bc5 {[%emt 0:00:54]} 20. Bd4 {[%emt 0:00:57]} Bxd4 {[%emt 0:01:09]} 21. Rxd4 {[%emt 0:00:52]} Ke7 {[%emt 0:00:36]} 22. Ke2 {[%emt 0:01:55]} c5 {[%emt 0:00:35]} 23. Re4 {[%emt 0:01:18]} Kf7 {[%emt 0:00:23]} 24. Rd1 {[%emt 0:02:59]} Rhd8 {[%emt 0:01:22]} 25. Rxd8 {[%emt 0:00:38]} Rxd8 {[%emt 0:00:01]} 26. Nf4 {[%emt 0:00:42]} g6 {[%emt 0:00:14]} 27. f3 {[%emt 0:02:37]} Rd6 {[%emt 0:02:18]} 28. Re3 {[%emt 0:03:01]} Rd8 {[%emt 0:01:37]} 29. Re4 {[%emt 0:00:30]} Nc6 {[%emt 0:00:36]} 30. Re3 {[%emt 0:01:04]} Ne5 {[%emt 0:00:30]} 31. Re4 {[%emt 0:01:44]} 1/2-1/2

[Event "EYCC Girls-U16 2019"]
[Site "Bratislava"]
[Date "2019.08.03"]
[Round "2.12"]
[White "Hercog, Nusa"]
[Black "Ozbek, Busra"]
[Result "1-0"]
[ECO "A40"]
[WhiteElo "2053"]
[BlackElo "1866"]
[Annotator "NA"]
[PlyCount "73"]
[EventDate "2019.08.02"]
[EventType "swiss"]
[EventCountry "SVK"]
[SourceTitle "playchess.com"]
[Source "ChessBase"]
[SourceQuality "1"]
[TimeControl "40/5400+30:1800+30"]

1. d4 {[%emt 0:00:00]} g6 {[%emt 0:00:00]} 2. c4 {[%emt 0:00:00]} Bg7 {[%emt 0:00:28]} 3. e4 {[%emt 0:01:21]} Nc6 {[%emt 0:01:35]} 4. Ne2 {[%emt 0:04:44]} e5 {[%emt 0:06:50]} 5. d5 {[%emt 0:01:33]} Nd4 {[%emt 0:01:11]} 6. Nxd4 {[%emt 0:03:45]} exd4 {[%emt 0:00:07]} 7. Bd3 {[%emt 0:00:54]} c5 {[%emt 0:03:09]} 8. O-O {[%emt 0:01:06]} d6 {[%emt 0:01:33]} 9. f4 {[%emt 0:05:23]} Ne7 {[%emt 0:15:42]} 10. Re1 {[%emt 0:03:34]} Qc7 {[%emt 0:07:49]} 11. Nd2 {[%emt 0:04:24]} O-O {[%emt 0:02:25]} 12. Qe2 {[%emt 0:07:08]} f6 {[%emt 0:12:15]} 13. h3 {[%emt 0:02:33]} Bd7 {[%emt 0:00:55]} 14. Nf3 {[%emt 0:00:21]} Rae8 {[%emt 0:00:23]} 15. Bd2 {[%emt 0:03:14]} Kh8 {[%emt 0:06:19]} 16. Qf2 {[%emt 0:00:35]} Nc8 {[%emt 0:11:35]} 17. Qg3 {[%emt 0:00:32]} Re7 {[%emt 0:01:14]} 18. Re2 {[%emt 0:00:46]} a6 {[%emt 0:09:27]} 19. Rae1 {[%emt 0:01:04]} b5 {[%emt 0:02:02]} 20. b3 {[%emt 0:02:04]} bxc4 {[%emt 0:00:34]} 21. bxc4 {[%emt 0:03:29]} Kg8 {[%emt 0:02:07]} 22. e5 {[%emt 0:10:02]} fxe5 {[%emt 0:04:45]} 23. fxe5 {[%emt 0:00:06]} dxe5 {[%emt 0:00:57]} 24. Nxe5 {[%emt 0:01:06]} Bxe5 {[%emt 0:06:51]} 25. Rxe5 {[%emt 0:00:08]} Ref7 {[%emt 0:00:03]} 26. Bh6 {[%emt 0:02:00]} Ba4 {[%emt 0:01:30]} 27. Bxf8 {[%emt 0:01:52]} Kxf8 {[%emt 0:00:13]} 28. Qg5 {[%emt 0:02:36]} Ne7 {[%emt 0:01:03]} 29. Re6 {[%emt 0:03:46]} Qd7 {[%emt 0:00:17]} 30. Qh6+ {[%emt 0:02:34]} Kg8 {[%emt 0:00:36]} 31. Rxa6 {[%emt 0:02:31]} Rf8 {[%emt 0:00:25]} 32. Rxa4 {[%emt 0:03:06]} Nf5 {[%emt 0:01:01]} 33. Bxf5 {[%emt 0:00:13]} Qxf5 {[%emt 0:00:32]} 34. Qd2 {[%emt 0:00:19]} Rb8 {[%emt 0:00:34]} 35. Ra7 {[%emt 0:01:22]} Rf8 {[%emt 0:00:28]} 36. Qh6 {[%emt 0:01:36]} Qf2+ {[%emt 0:00:30]} 37. Kh2 {[%emt 0:00:01]} 1-0

[Event "EYCC Girls-U16 2019"]
[Site "Bratislava"]
[Date "2019.08.03"]
[Round "2.13"]
[White "Sade, Defne"]
[Black "Juhasz, Judit"]
[Result "1-0"]
[ECO "B32"]
[WhiteElo "1897"]
[BlackElo "2050"]
[Annotator "NA"]
[PlyCount "65"]
[EventDate "2019.08.02"]
[EventType "swiss"]
[EventCountry "SVK"]
[SourceTitle "playchess.com"]
[Source "ChessBase"]
[SourceQuality "1"]
[TimeControl "40/5400+30:1800+30"]

1. e4 {[%emt 0:00:00]} c5 {[%emt 0:00:00]} 2. Nf3 {[%emt 0:00:00]} Nc6 {[%emt 0:00:00]} 3. d4 {[%emt 0:00:00]} cxd4 {[%emt 0:00:00]} 4. Nxd4 {[%emt 0:00:00]} Qb6 {[%emt 0:00:00]} 5. Nb3 {[%emt 0:00:36]} Nf6 {[%emt 0:00:11]} 6. Nc3 {[%emt 0:00:47]} e6 {[%emt 0:00:15]} 7. Be3 {[%emt 0:00:06]} Qc7 {[%emt 0:00:10]} 8. Bd3 {[%emt 0:01:16]} a6 {[%emt 0:00:47]} 9. f4 {[%emt 0:00:15]} d6 {[%emt 0:00:37]} 10. a4 {[%emt 0:01:10]} b6 {[%emt 0:01:35]} 11. O-O {[%emt 0:00:15]} Be7 {[%emt 0:00:35]} 12. Qf3 {[%emt 0:02:19]} Bb7 {[%emt 0:00:58]} 13. Rae1 {[%emt 0:01:45]} Nb4 {[%emt 0:02:59]} 14. Qg3 {[%emt 0:04:59]} g6 {[%emt 0:03:52]} 15. Bd4 {[%emt 0:09:38]} Rg8 {[%emt 0:04:49]} 16. h3 {[%emt 0:09:13]} Rc8 {[%emt 0:26:29]} 17. e5 {[%emt 0:16:23]} Nh5 {[%emt 0:08:10]} 18. Qf2 {[%emt 0:05:14]} Nxd3 {[%emt 0:12:27]} 19. cxd3 {[%emt 0:00:42]} Qc6 {[%emt 0:04:37]} 20. Ne4 {[%emt 0:12:32]} Qd5 {[%emt 0:12:26]} 21. Nbd2 {[%emt 0:06:24]} Bh4 {[%emt 0:10:31]} 22. Qxh4 {[%emt 0:01:08]} Qxd4+ {[%emt 0:00:05]} 23. Kh1 {[%emt 0:00:11]} Rc2 {[%emt 0:06:28]} 24. exd6 {[%emt 0:04:08]} f6 {[%emt 0:01:15]} 25. f5 {[%emt 0:04:46]} Rxd2 {[%emt 0:01:13]} 26. Nxf6+ {[%emt 0:02:23]} Qxf6 {[%emt 0:00:15]} 27. Rxe6+ {[%emt 0:00:09]} Kf7 {[%emt 0:01:30]} 28. Rxf6+ {[%emt 0:01:55]} Nxf6 {[%emt 0:00:03]} 29. Qc4+ {[%emt 0:02:19]} Kf8 {[%emt 0:00:48]} 30. d7 {[%emt 0:01:25]} Bxg2+ {[%emt 0:01:19]} 31. Kg1 {[%emt 0:00:07]} Nxd7 {[%emt 0:00:28]} 32. fxg6+ {[%emt 0:01:06]} Ke7 {[%emt 0:00:33]} 33. Re1+ {[%emt 0:00:44]} 1-0

[Event "EYCC Girls-U16 2019"]
[Site "Bratislava"]
[Date "2019.08.03"]
[Round "2.14"]
[White "Dylag, Emilia"]
[Black "Simonova, Stela"]
[Result "1-0"]
[ECO "A40"]
[WhiteElo "2099"]
[BlackElo "1677"]
[Annotator "NA"]
[PlyCount "103"]
[EventDate "2019.08.02"]
[EventType "swiss"]
[EventCountry "SVK"]
[SourceTitle "playchess.com"]
[Source "ChessBase"]
[SourceQuality "1"]
[TimeControl "40/5400+30:1800+30"]

1. d4 {[%emt 0:00:00]} e6 {[%emt 0:00:00]} 2. Nf3 {[%emt 0:00:07]} f5 {[%emt 0:02:16]} 3. c4 {[%emt 0:01:05]} Nf6 {[%emt 0:00:34]} 4. Nc3 {[%emt 0:02:19]} Bb4 {[%emt 0:01:18]} 5. Qb3 {[%emt 0:06:18]} Bxc3+ {[%emt 0:06:56]} 6. Qxc3 {[%emt 0:00:46]} O-O {[%emt 0:05:01]} 7. e3 {[%emt 0:03:11]} b6 {[%emt 0:01:13]} 8. Bd3 {[%emt 0:03:59]} Bb7 {[%emt 0:01:19]} 9. b3 {[%emt 0:02:15]} d6 {[%emt 0:02:15]} 10. Bb2 {[%emt 0:03:21]} Nbd7 {[%emt 0:01:24]} 11. d5 {[%emt 0:13:52]} Qe7 {[%emt 0:15:43]} 12. Nd4 {[%emt 0:11:36]} exd5 {[%emt 0:05:10]} 13. Nxf5 {[%emt 0:02:49]} Qf7 {[%emt 0:04:56]} 14. cxd5 {[%emt 0:05:50]} Ne5 {[%emt 0:06:58]} 15. Bc2 {[%emt 0:13:14]} Bxd5 {[%emt 0:06:58]} 16. O-O-O {[%emt 0:05:13]} Be4 {[%emt 0:04:15]} 17. f4 {[%emt 0:04:30]} Neg4 {[%emt 0:13:40]} 18. h3 {[%emt 0:06:45]} Nf2 {[%emt 0:04:23]} 19. Bxe4 {[%emt 0:01:18]} N2xe4 {[%emt 0:00:25]} 20. Qc2 {[%emt 0:00:46]} Rfe8 {[%emt 0:05:00]} 21. g4 {[%emt 0:03:06]} Rad8 {[%emt 0:02:12]} 22. Rhe1 {[%emt 0:01:04]} Nc5 {[%emt 0:01:29]} 23. g5 {[%emt 0:01:16]} Nh5 {[%emt 0:00:58]} 24. Bxg7 {[%emt 0:01:21]} Qe6 {[%emt 0:01:57]} 25. Bb2 {[%emt 0:00:46]} Qe4 {[%emt 0:01:19]} 26. Nh6+ {[%emt 0:00:58]} Kf8 {[%emt 0:00:08]} 27. Qc3 {[%emt 0:00:30]} Ke7 {[%emt 0:02:02]} 28. f5 {[%emt 0:02:00]} Kd7 {[%emt 0:02:23]} 29. f6 {[%emt 0:02:06]} Rf8 {[%emt 0:00:40]} 30. Qd4 {[%emt 0:00:53]} Qg6 {[%emt 0:00:44]} 31. Qg4+ {[%emt 0:00:48]} Kc6 {[%emt 0:00:26]} 32. Nf5 {[%emt 0:00:37]} Kb7 {[%emt 0:00:53]} 33. Qf3+ {[%emt 0:00:41]} Ka6 34. h4 {[%emt 0:00:29]} Rde8 {[%emt 0:01:24]} 35. Qe2+ {[%emt 0:00:46]} Kb7 {[%emt 0:00:07]} 36. Ne7 {[%emt 0:00:20]} Qe4 {[%emt 0:00:34]} 37. Rd4 {[%emt 0:00:31]} Ng3 {[%emt 0:00:32]} 38. Qf2 {[%emt 0:00:55]} Qxe7 {[%emt 0:00:54]} 39. Qxg3 {[%emt 0:00:18]} Qe6 {[%emt 0:00:23]} 40. Qf3+ {[%emt 0:00:00]} Kb8 {[%emt 0:00:00]} 41. e4 {[%emt 0:06:55]} Nd7 {[%emt 0:03:21]} 42. Rd2 {[%emt 0:06:03]} Ne5 {[%emt 0:05:47]} 43. Bxe5 {[%emt 0:03:01]} Qxe5 {[%emt 0:01:29]} 44. Kb1 {[%emt 0:01:00]} Qe6 {[%emt 0:02:30]} 45. Qg3 {[%emt 0:02:01]} Qf7 {[%emt 0:02:08]} 46. e5 {[%emt 0:03:41]} dxe5 {[%emt 0:05:59]} 47. Rxe5 {[%emt 0:00:10]} Rxe5 {[%emt 0:01:14]} 48. Qxe5 {[%emt 0:00:04]} Re8 {[%emt 0:00:41]} 49. Qf5 {[%emt 0:01:34]} Qh5 {[%emt 0:06:44]} 50. Qd7 {[%emt 0:04:47]} Re1+ {[%emt 0:01:15]} 51. Kb2 {[%emt 0:00:13]} Rf1 {[%emt 0:01:16]} 52. Qc6 {[%emt 0:00:33]} 1-0

[Event "EYCC Girls-U16 2019"]
[Site "Bratislava"]
[Date "2019.08.03"]
[Round "2.15"]
[White "Pecorini, Angie"]
[Black "Srdanovic, Jovana"]
[Result "1/2-1/2"]
[ECO "D14"]
[WhiteElo "1781"]
[BlackElo "1975"]
[Annotator "NA"]
[PlyCount "113"]
[EventDate "2019.08.02"]
[EventType "swiss"]
[EventCountry "SVK"]
[SourceTitle "playchess.com"]
[Source "ChessBase"]
[SourceQuality "1"]
[TimeControl "40/5400+30:1800+30"]

1. d4 {[%emt 0:00:00]} d5 {[%emt 0:00:00]} 2. c4 {[%emt 0:00:00]} c6 {[%emt 0:00:00]} 3. cxd5 {[%emt 0:00:00]} cxd5 {[%emt 0:00:00]} 4. Nc3 {[%emt 0:00:00]} Nf6 {[%emt 0:00:00]} 5. Nf3 {[%emt 0:00:00]} Nc6 {[%emt 0:00:12]} 6. Bf4 {[%emt 0:00:47]} Bf5 {[%emt 0:01:15]} 7. Qb3 {[%emt 0:06:15]} Na5 {[%emt 0:00:06]} 8. Qa4+ {[%emt 0:02:10]} Bd7 {[%emt 0:01:52]} 9. Qd1 {[%emt 0:01:38]} e6 {[%emt 0:00:10]} 10. e3 {[%emt 0:00:39]} Bb4 {[%emt 0:03:12]} 11. Bd3 {[%emt 0:05:20]} O-O {[%emt 0:02:16]} 12. O-O {[%emt 0:01:27]} Rc8 {[%emt 0:01:41]} 13. Ne2 {[%emt 0:06:31]} Qb6 {[%emt 0:01:28]} 14. a3 {[%emt 0:01:39]} Be7 {[%emt 0:00:17]} 15. Rb1 {[%emt 0:10:41]} Bb5 {[%emt 0:06:46]} 16. Ne5 {[%emt 0:04:18]} Bxd3 {[%emt 0:02:46]} 17. Qxd3 {[%emt 0:02:51]} Qb3 {[%emt 0:03:29]} 18. Nc3 {[%emt 0:10:30]} a6 {[%emt 0:06:41]} 19. Rfc1 {[%emt 0:01:05]} Nh5 {[%emt 0:10:45]} 20. Bg3 {[%emt 0:07:29]} Nxg3 {[%emt 0:00:23]} 21. hxg3 {[%emt 0:00:12]} Bd6 {[%emt 0:01:27]} 22. Nf3 {[%emt 0:02:12]} Nc4 {[%emt 0:02:42]} 23. Qe2 {[%emt 0:01:13]} Rc7 {[%emt 0:14:11]} 24. Nd2 {[%emt 0:04:36]} Nxd2 {[%emt 0:02:13]} 25. Qxd2 {[%emt 0:00:05]} Rfc8 {[%emt 0:00:49]} 26. Kf1 {[%emt 0:08:49]} b5 {[%emt 0:00:54]} 27. Qd3 {[%emt 0:01:58]} Rc4 {[%emt 0:00:36]} 28. Qd1 {[%emt 0:06:07]} Qxd1+ {[%emt 0:00:44]} 29. Rxd1 {[%emt 0:00:11]} Rb8 {[%emt 0:02:11]} 30. Ra1 {[%emt 0:11:22]} Kf8 {[%emt 0:03:04]} 31. Rdc1 {[%emt 0:01:15]} Rbc8 {[%emt 0:01:29]} 32. Rcb1 {[%emt 0:02:27]} Ke7 {[%emt 0:00:46]} 33. Ke2 {[%emt 0:00:07]} Bc7 {[%emt 0:01:25]} 34. Rc1 {[%emt 0:01:02]} Bd8 {[%emt 0:10:47]} 35. g4 {[%emt 0:00:45]} Ba5 {[%emt 0:03:26]} 36. Kd3 {[%emt 0:00:32]} Bxc3 {[%emt 0:05:17]} 37. Rxc3 {[%emt 0:00:59]} Kf6 {[%emt 0:01:05]} 38. f4 {[%emt 0:00:15]} Rxc3+ {[%emt 0:00:30]} 39. bxc3 {[%emt 0:00:05]} Rc4 {[%emt 0:00:19]} 40. Rc1 {[%emt 0:00:00]} Kg6 {[%emt 0:00:00]} 41. e4 {[%emt 0:02:23]} Ra4 {[%emt 0:07:33]} 42. exd5 {[%emt 0:01:20]} exd5 {[%emt 0:00:10]} 43. Kc2 {[%emt 0:09:40]} Rxa3 {[%emt 0:05:34]} 44. Kb2 {[%emt 0:00:07]} Ra4 {[%emt 0:00:10]} 45. Re1 {[%emt 0:00:11]} Rc4 {[%emt 0:00:47]} 46. Re5 {[%emt 0:01:15]} b4 {[%emt 0:01:09]} 47. Rxd5 {[%emt 0:00:26]} bxc3+ {[%emt 0:00:10]} 48. Kc2 {[%emt 0:00:06]} Kf6 {[%emt 0:00:45]} 49. Rd6+ {[%emt 0:07:43]} Ke7 {[%emt 0:00:56]} 50. Rxa6 {[%emt 0:00:05]} Rxd4 {[%emt 0:00:25]} 51. g3 {[%emt 0:00:10]} Rd2+ {[%emt 0:13:43]} 52. Kxc3 {[%emt 0:00:06]} Rg2 {[%emt 0:00:03]} 53. Kd4 {[%emt 0:00:13]} Rxg3 {[%emt 0:00:59]} 54. Ra7+ {[%emt 0:00:26]} Ke6 {[%emt 0:02:42]} 55. Ra6+ {[%emt 0:00:07]} Kd7 {[%emt 0:00:30]} 56. Ra7+ {[%emt 0:02:19]} Kd6 {[%emt 0:01:24]} 57. Ra6+ {[%emt 0:00:24] Ke5+} 1/2-1/2

[Event "EYCC Girls-U16 2019"]
[Site "Bratislava"]
[Date "2019.08.03"]
[Round "2.16"]
[White "Jarocka, Liwia"]
[Black "Vetshtein, Lior"]
[Result "1-0"]
[ECO "C03"]
[WhiteElo "2102"]
[BlackElo "1576"]
[Annotator "NA"]
[PlyCount "51"]
[EventDate "2019.08.02"]
[EventType "swiss"]
[EventCountry "SVK"]
[SourceTitle "playchess.com"]
[Source "ChessBase"]
[SourceQuality "1"]
[TimeControl "40/5400+30:1800+30"]

1. e4 {[%emt 0:00:00]} e6 {[%emt 0:00:00]} 2. d4 {[%emt 0:00:00]} d5 {[%emt 0:00:00]} 3. Nd2 {[%emt 0:00:00]} h6 {[%emt 0:00:09]} 4. Ngf3 {[%emt 0:00:49]} Nf6 {[%emt 0:00:24]} 5. e5 {[%emt 0:00:52]} Nfd7 {[%emt 0:00:19]} 6. Bd3 {[%emt 0:00:15]} c5 {[%emt 0:00:12]} 7. c3 {[%emt 0:00:09]} Nc6 {[%emt 0:00:16]} 8. Qe2 {[%emt 0:01:07]} Be7 {[%emt 0:02:42]} 9. h3 {[%emt 0:02:32]} Qb6 {[%emt 0:02:13]} 10. dxc5 {[%emt 0:01:36]} Nxc5 {[%emt 0:02:09]} 11. Bc2 {[%emt 0:02:34]} Qc7 {[%emt 0:09:38]} 12. O-O {[%emt 0:02:09]} Nd7 {[%emt 0:07:06]} 13. Re1 {[%emt 0:00:41]} Nb6 {[%emt 0:02:09]} 14. Nb3 {[%emt 0:02:06]} Bd7 {[%emt 0:04:38]} 15. Nbd4 {[%emt 0:02:04]} O-O-O {[%emt 0:03:18]} 16. a4 {[%emt 0:02:34]} Kb8 {[%emt 0:07:16]} 17. Nb5 {[%emt 0:04:18]} Qc8 {[%emt 0:02:34]} 18. b3 {[%emt 0:02:34]} Na5 {[%emt 0:03:08]} 19. Bd2 {[%emt 0:06:36]} f5 {[%emt 0:06:18]} 20. exf6 {[%emt 0:07:08]} gxf6 {[%emt 0:00:35]} 21. Bf4+ {[%emt 0:00:53]} e5 {[%emt 0:01:18]} 22. Bxe5+ {[%emt 0:02:38]} fxe5 {[%emt 0:01:02]} 23. Qxe5+ {[%emt 0:00:10]} Ka8 {[%emt 0:00:19]} 24. Nc7+ {[%emt 0:00:37]} Kb8 {[%emt 0:00:23]} 25. Nxd5+ {[%emt 0:00:17]} Ka8 {[%emt 0:00:49]} 26. Nxe7 {[%emt 0:00:14]} 1-0